Cogmind - Beta 14 @@@ ROGUE MODE // 2024.11.08 @ 06:55:37 Player: Shimmyarah Result: Destroyed by Y-45 Defender with Beam Rifle Performance ------------- Evolutions (2) 1000 Regions Visited (3) 600 Robots Destroyed (73) 365 Value Destroyed (1634) 1634 Prototype IDs (2) 40 Alien Tech Used (0) 0 Bonus (222) 222 TOTAL SCORE: 3861 Bonus ------- High Alert Combat Kills 222 Cogmind --------- Core Integrity 0/550 Matter 24/300 Energy 100/100 System Corruption 0% Temperature Cool (9) Movement Core (200) Ox3 Location -8/Materials Parts ------- > --- POWER (2) -------- (None) > --- PROPULSION (3) --- (None) > --- UTILITY (4) ------ Medium Storage Unit System Shield > --- WEAPON (2) ------- (None) > --- INVENTORY (10) --- Titanium Leg Signal Interpreter System Shield Shock Rifle Shock Rifle Heavy EM Shotgun Heavy EM Shotgun Particle Gun Shotgun Flak Cannon Peak State ------------ > --- POWER ------------ Light Ion Engine Light Ion Engine > --- PROPULSION ------- Titanium Leg Wheel Wheel > --- UTILITY ---------- Medium Storage Unit Improved Terrain Scanner Seismic Detector System Shield > --- WEAPON ----------- Heavy EM Shotgun Flak Cannon > --- INVENTORY -------- Titanium Leg Signal Interpreter System Shield Shock Rifle Heavy EM Shotgun Particle Gun Shotgun Mini Grenade Launcher Mini Grenade Launcher [Rating: 24] Favorites ----------- Power Heavy Ion Engine Engine Heavy Ion Engine Propulsion Light Treads Treads Light Treads Leg Titanium Leg Wheel Wheel Utility Medium Storage Unit Device Improved Terrain Scanner Storage Medium Storage Unit Hackware System Shield Weapon Assault Rifle Energy Gun Heavy EM Shotgun Energy Cannon EM Pulse Cannon Ballistic Gun Assault Rifle Ballistic Cannon Flak Cannon Launcher Mini Grenade Launcher Build | -11 -10 -9 -8 ------- Run | Yrd Mat Mat Mat Slots Evolved 4 | . . 2 2 Power 1 | . . 1 . Propulsion 1 | . . 1 . Utility 2 | . . . 2 Weapon . | . . . . Parts Attached 39 | 7 7 8 17 Power 10 | 1 3 2 4 Engine 10 | 1 3 2 4 Core . | . . . . Reactor . | . . . . Propulsion 8 | 2 2 1 3 Treads 2 | 2 . . . Leg 1 | . . . 1 Wheel 5 | . 2 1 2 Hover . | . . . . Flight . | . . . . Utility 8 | 2 2 1 3 Device 5 | 1 1 1 2 Storage 2 | 1 1 . . Processor . | . . . . Hackware 1 | . . . 1 Protection . | . . . . Artifact . | . . . . Weapon 13 | 2 . 4 7 Energy Gun 1 | . . . 1 Energy Cannon 1 | . . 1 . Ballistic Gun 2 | 2 . . . Ballistic Cannon 1 | . . . 1 Launcher 8 | . . 3 5 Special Weapon . | . . . . Impact Weapon . | . . . . Slashing Weapon . | . . . . Piercing Weapon . | . . . . Special Melee Weapon . | . . . . Unidentified Prototypes 2 | . 1 . 1 Parts Lost 22 | . 1 3 18 Power 6 | . . . 6 Propulsion 6 | . . 2 4 Utility 4 | . 1 . 3 Weapon 6 | . . 1 5 Highest Loss Streak 7 | . 1 2 7 To Critical Strikes . | . . . . Average Slot Usage (%) 86 | . 96 92 70 Engine 13 | . 14 22 9 Treads 11 | . 26 . . Leg 2 | . . . 7 Wheel 8 | . 1 27 6 Device 11 | . 11 11 12 Storage 11 | . 14 11 9 Hackware 3 | . . . 9 Energy Cannon 1 | . . 6 . Ballistic Gun 13 | . 28 5 . Ballistic Cannon 1 | . . . 3 Launcher 6 | . . 8 12 Peak Build Rating 24 | 9 12 20 24 Average Rating 13 | 5 9 17 17 On Entrance 8 | . 9 12 12 Naked Turns . | . . . . Heaviest Build 36 | 14 22 36 29 Greatest Support 40 | 40 40 36 20 Greatest Overweight (x) 9 | . . 1 9 Average Overweight (x) . | . . . 1 Largest Inventory Capacity 10 | 8 10 10 10 Average Capacity 9 | 7 8 10 10 Most Carried 10 | 8 10 10 10 Average Carried 8 | 3 8 9 8 Final Capacity 10 | 8 10 10 10 Final Carried 10 | 7 10 10 10 Class Distribution -------------------- 95% | Mutant 4% | Scavenger-Mutant Dominant Class ---------------- Mutant | -10/Materials Mutant | -9/Materials Mutant | -8/Materials Resources | -11 -10 -9 -8 ----------- Run | Yrd Mat Mat Mat Matter Collected 1304 | 282 226 207 589 Remotely . | . . . . Salvage Created 1525 | 119 344 409 653 Parts 124 | 13 28 30 53 Haulers Intercepted 3 | . . 1 2 Recyclers Shooed 8 | . 2 3 3 Parts Field Recycled . | . . . . Retrieved Matter . | . . . . Parts Self-Destructed . | . . . . Prevented . | . . . . Kills | -11 -10 -9 -8 ------- Run | Yrd Mat Mat Mat Combat Hostiles Destroyed 43 | . 10 10 23 Guns 11 | . 10 1 . Cannons 5 | . . 2 3 AOE 27 | . . 7 20 Classes Destroyed 12 | 2 4 4 2 Worker 6 | . 1 2 3 Builder 4 | . . . 4 Tunneler 2 | 2 . . . Hauler 3 | . . 1 2 Recycler 3 | 1 . . 2 Mechanic 2 | . . 1 1 Operator 1 | . . 1 . Watcher 9 | . 2 4 3 Swarmer 16 | . 5 3 8 Grunt 19 | . 5 4 10 Sentry 7 | . . 3 4 Hunter 1 | . . . 1 Best Kill Streak 11 | 3 4 11 9 Combat Bots Only 8 | . 3 3 8 Max Kills in Single Turn 4 | 1 2 2 4 Gunslinging 1 | . 1 . . Exploded 3 | . . 1 3 Melee . | . . . . Uniques/NPCs Destroyed . | . . . . Combat | -11 -10 -9 -8 -------- Run | Yrd Mat Mat Mat Hostile Shots Fired 277 | . 72 53 152 Missed 94 | . 25 17 52 Damage Taken 2666 | . 452 459 1755 Core 747 | . 76 115 556 Absorbed by Shields . | . . . . Core Remaining (%) 80 | 100 69 71 . Volleys Fired 144 | 3 55 38 48 Largest 2 | 2 2 2 2 Hottest 94 | 40 40 93 94 Shots Fired 253 | 6 110 66 71 Gun 141 | 6 110 24 1 Cannon 45 | . . 20 25 Launcher 67 | . . 22 45 Special . | . . . . Kinetic 165 | 6 110 24 25 Thermal . | . . . . Explosive 67 | . . 22 45 Electromagnetic 21 | . . 20 1 Robot Hit Streak 7 | 4 7 4 4 Robot Miss Streak 7 | 1 7 4 6 Penetration Max . | . . . . Secondary Targets 1 | . 1 . . Max Gunslinging Chain 1 | . 1 . . Shots Hit Robots 123 | 5 56 28 34 Core Hits 152 | 4 22 34 92 Critical Kills . | . . . . Critical Parts Destroyed . | . . . . Critical Strikes 1 | . . 1 . Corrupt 1 | . . 1 . Melee Attacks . | . . . . Impact . | . . . . Slashing . | . . . . Piercing . | . . . . Sneak Attacks . | . . . . Combat Hostiles . | . . . . Follow-up Attacks . | . . . . Damage Inflicted 5600 | 55 625 1340 3580 Guns 841 | 55 618 148 20 Cannons 641 | . . 273 368 Explosions 4101 | . . 919 3182 Melee . | . . . . Ramming 17 | . 7 . 10 Kinetic 1189 | 55 618 148 368 Thermal 112 | . . . 112 Explosive 3989 | . . 919 3070 Electromagnetic 293 | . . 273 20 Impact . | . . . . Slashing . | . . . . Piercing . | . . . . Highest Corruption . | . . . . Average Corruption . | . . . . Corruption Purged . | . . . . Corruption Blocked . | . . . . Overload Shots . | . . . . Overflow Damage 149 | . . 28 121 Projectiles 15 | . . 15 . Explosions 134 | . . 13 121 Melee . | . . . . Knockbacks 14 | . . . 14 Impact . | . . . . Kinetic 14 | . . . 14 Secondary . | . . . . Self-Inflicted Damage 379 | . . 39 340 Shots 16 | . . 3 13 Rammed 12 | . 4 . 8 Targets Rammed 12 | . 4 . 8 Kicked . | . . . . Crushed . | . . . . Highest Temperature 407 | . 18 407 114 Average Temperature 84 | . 8 115 33 Received Heat Transfer 771 | . 156 138 477 Effects 4 | . . 4 . Shutdowns 1 | . . 1 . Interference 1 | . . 1 . Matter Decay 1 | . . 1 . Short Circuit 1 | . . 1 . Siege Activations . | . . . . Robots Corrupted . | . . . . Combat Hostiles . | . . . . Parts Fried 1 | . . 1 . Impact Corruptions . | . . . . Robots Melted . | . . . . Combat Hostiles . | . . . . Parts Melted . | . . . . Heat Transferred 100 | . . . 100 Parts Sabotaged . | . . . . Parts Stolen . | . . . . Parts Stripped . | . . . . Power Chain Reactions 1 | . . . 1 Alert | -11 -10 -9 -8 ------- Run | Yrd Mat Mat Mat Peak Influence 771 | 15 330 592 771 Initial 165 | . 9 76 165 Average 248 | 6 92 253 468 Maximum Alert Level 3 | . 1 2 3 Low Security (%) 56 | 100 81 64 15 Level 1 15 | . 18 12 16 Level 2 21 | . . 23 50 Level 3 6 | . . . 17 Level 4 . | . . . . Level 5 . | . . . . High Security . | . . . . Max Security . | . . . . Squads Dispatched 8 | . 2 2 4 Investigation 3 | . 1 1 1 Extermination . | . . . . Reinforcement 3 | . 1 1 1 Assault . | . . . . Garrison 2 | . . . 2 Intercept . | . . . . Searches Triggered . | . . . . Construction Impeded 1 | . . . 1 Haulers Reinforced . | . . . . Active Scanning Responses . | . . . . Cargo Convoy Interrupts . | . . . . Stealth | -11 -10 -9 -8 --------- Run | Yrd Mat Mat Mat Distress Signals 7 | . 3 1 3 Communications Jammed . | . . . . Distress Signals . | . . . . Times Spotted 67 | . 15 16 36 Peak Tracking Total 9 | . 4 4 9 Tactical Retreats 2 | . 2 . . Traps | -11 -10 -9 -8 ------- Run | Yrd Mat Mat Mat Traps Triggered 1 | . 1 . . Indirectly . | . . . . Trap Hack Attempts . | . . . . Triggered . | . . . . Disarmed . | . . . . Reprogrammed . | . . . . Reused . | . . . . Traps Extracted . | . . . . Installed . | . . . . Triggered . | . . . . Machines | -11 -10 -9 -8 ---------- Run | Yrd Mat Mat Mat Machines Disabled 3 | . . 3 . Max in Single Turn 1 | . . 1 . Machines Repaired . | . . . . Machines Dismantled . | . . . . Machines Sabotaged . | . . . . Overloaded Fab Kills . | . . . . Hacking | -11 -10 -9 -8 --------- Run | Yrd Mat Mat Mat Machines Accessed 7 | . 2 3 2 Terminals 6 | . 2 3 1 Fabricators . | . . . . Repair Stations . | . . . . Recycling Units . | . . . . Scanalyzers 1 | . . . 1 Garrison Access . | . . . . Total Hacks 23 | . 5 8 10 Successful 12 | . 2 2 8 Failed 11 | . 3 6 2 Catastrophic 2 | . . 2 . Database Lockouts . | . . . . Manual 17 | . 5 9 3 Terminals 14 | . 5 8 1 Fabricators . | . . . . Repair Stations . | . . . . Recycling Units . | . . . . Scanalyzers 9 | . . . 9 Garrison Access . | . . . . Terminal Hacks 2 | . 1 1 . Level Access Points 1 | . 1 . . Alert Level 1 | . . 1 . Fabricator Hacks . | . . . . Repair Station Hacks . | . . . . Recycling Unit Hacks . | . . . . Scanalyzer 7 | . . . 7 Insert Component 3 | . . . 3 Analyze 4 | . . . 4 Garrison Access Hacks . | . . . . Unauthorized Hacks 3 | . 1 1 1 Terminals 3 | . 1 1 1 Operators 3 | . 1 1 1 Fabricators . | . . . . Repair Stations . | . . . . Recycling Units . | . . . . Scanalyzers . | . . . . Garrison Access . | . . . . Data Cores Recovered . | . . . . Used . | . . . . Hacking Detections 5 | . . 3 2 Full Trace Events 2 | . . 1 1 Feedback Events . | . . . . Feedback Blocked . | . . . . Robot Schematics Acquired . | . . . . Robots Built . | . . . . Authchips . | . . . . Time . | . . . . Total Robot Build Rating . | . . . . Part Schematics Acquired 3 | . . . 3 Parts Built . | . . . . Authchips . | . . . . Time . | . . . . Total Part Build Rating . | . . . . Parts Repaired . | . . . . Time . | . . . . Parts Recycled . | . . . . Recycled Matter . | . . . . Retrieved Matter . | . . . . Retrieved Components . | . . . . Parts Scanalyzed 3 | . . . 3 Part Schematics Acquired 3 | . . . 3 Parts Damaged . | . . . . Bothacking | -11 -10 -9 -8 ------------ Run | Yrd Mat Mat Mat Used RIF Installer . | . . . . Robots Hacked . | . . . . Non-combat . | . . . . Combat . | . . . . Robot Hacks Applied . | . . . . Relay Couplers Released . | . . . . Fabnet Peak Effective % . | . . . . Robots Rewired . | . . . . Allies Hacked . | . . . . Hacks Repelled . | . . . . Allies | -11 -10 -9 -8 -------- Run | Yrd Mat Mat Mat Total Allies . | . . . . Largest Group . | . . . . Highest-Rated Group . | . . . . Highest-Rated Ally . | . . . . Total Orders . | . . . . Ally Attacks . | . . . . Total Damage . | . . . . Kills . | . . . . Allies Corrupted . | . . . . Allies Melted . | . . . . Intel | -11 -10 -9 -8 ------- Run | Yrd Mat Mat Mat Robot Analysis Total . | . . . . Derelict Logs Recovered . | . . . . Drone Launches . | . . . . Drone Recoveries . | . . . . Exploration | -11 -10 -9 -8 ------------- Run | Yrd Mat Mat Mat Turns Passed 2098 | 119 847 407 725 Spaces Moved 1187 | 65 426 311 385 Core 85 | 13 . . 72 Treads 451 | 52 399 . . Legs . | . . . . Wheels 651 | . 27 311 313 Hover . | . . . . Flight . | . . . . Fastest Speed 50 | 50 90 86 95 Average Speed 134 | 138 155 92 143 Slowest Speed 500 | 160 160 115 500 Overloaded Moves . | . . . . Propulsion Burnouts . | . . . . Robots Hopped . | . . . . Cave-ins Triggered . | . . . . Exploration Rate (%) 24 | 5 33 27 34 Regions Visited 3 Branch Regions . Pre-discovered Areas . | . . . . Known Exits Taken 1 | . 1 . . Unknown Exits Taken 2 | 1 . 1 . Scrap Searched . | . . . . Spaces Dug . | . . . . Terrain Destroyed 391 | . . 126 265 Melee . | . . . . Projectile . | . . . . AOE 391 | . . 126 265 Terrain Rammed . | . . . . Walls Destroyed . | . . . . Machines Disabled . | . . . . Actions | -11 -10 -9 -8 --------- Run | Yrd Mat Mat Mat Total 1436 | 90 511 365 470 Wait . | . . . . Move 1184 | 64 425 310 385 Hop . | . . . . Pick Up 42 | 15 11 4 12 Fast Attach 5 | . . 3 2 Attach 22 | 7 1 2 12 Detach . | . . . . Swap 12 | . 6 3 3 Drop 15 | 1 9 5 . Fire 144 | 3 55 38 48 Melee . | . . . . Ram 8 | . . . 8 Kick . | . . . . Crush 4 | . 4 . . Escape Stasis . | . . . . Rewire . | . . . . Trap . | . . . . Miscellaneous . | . . . . Route ------- -11/Scrapyard -10/Materials (discovered 3 exits: *Mat x3) -9/Materials -8/Materials History --------- Turn | Location | Event 19 | -11/Scrapyard | Discovered new exit (range 16) 120 | -11/Scrapyard | Entered Materials 201 | -10/Materials | Identified exit to Materials 311 | -10/Materials | Build established: Mutant 967 | -10/Materials | Entered another Materials area 967 | -9/Materials | Evolved 2 slots: Power x1, Propulsion x1 1321 | -9/Materials | Discovered new exit (range 16) 1374 | -9/Materials | Entered another Materials area 1374 | -8/Materials | Evolved 2 slots: Utility x2 1730 | -8/Materials | Lost 3 parts (1n1u1w) 1917 | -8/Materials | Core integrity fell below 50% 1947 | -8/Materials | Garrison activated, responded to threat 1992 | -8/Materials | Destroyed 8 combat bots 2034 | -8/Materials | Lost 7 parts (2p3n2u) 2072 | -8/Materials | Core integrity fell below 20% 2099 | -8/Materials | Destroyed by Y-45 Defender with Beam Rifle Last Messages --------------- 02036_ K-01 Serf collects debris. 02043_ U-05 Engineer builds a Wall. 02044_ K-01 Serf collects debris. 02048_ Acquired Lgt. Ion Engine. 02049_ U-05 Engineer builds a Wall. 02052_ The unstable cave ceiling collapses. 02053_ K-01 Serf collects debris. 02057_ Slammed into K-01 Serf. 02058_ K-01 Serf collects debris. 02065_ U-05 Engineer lays Concrete. 02070_ Critical hit (Burn: +37). 02070_ Mni. Grenade Launcher destroyed. 02071_ U-05 Engineer lays Concrete. 02071_ Critical hit (Burn: +37). 02072_ U-05 Engineer lays Concrete. 02076_ Mni. Grenade Launcher destroyed. 02076_ U-05 Engineer lays Concrete. 02094_ Lgt. Ion Engine destroyed. 02099_ Slammed into G-47 Trooper. 02099_ Destabilizing: Core damaged (-5). Map ----- +----------------------------------------------------+ | ????????????????????????????????????????????? | | ???????????????????????????????????????#????? | | ????????????????????????????????????????????? | | ???????????????????????????????????? ???????? | | ????????????????????????????? ??????#? | | ????????????????????????????# #??????? | | ????????????????????????????# #??#?#?? | | ????????????????????????????# ##??#?#? | | ???????????????????????????## #??????? | | ???????????????????????????# #??????? | | ??????????????????????????## #??????# | | ??????????????????????????# ###????# | | ??????????????????????????# ##??#??# | | ??????????????????????????# = * ###????# | | ??????????????????#####????# ####???# | | ??????????????????# | ?????# ##??# | | ??????????????????? ??? ?# ##### | | ??????????????????? ! ""???# # # | | ???????????????????? """ ?# *=|* | | ???????????????????? ?# | | ????????????????????? """??# = | | ????????????????????? """??# ## #### | | ?????????????????????? ""???# # # | | ?????????????????????? ???# # # # ## "" | | ?????????# ##########+##### #######? "" | | ?????????# a@ g # "" | | ?????????+ g + | | ?????????# Y # "" | | ?????????# ############ ##### ######## "" | | ?????????#??????????????#+#???# #??#???? "? | | ??????????????????????????????# #??????? ? | | ???????????????????????????#??# #??????#?#? | | ?????????????????????????????## #??????#??? | | ??????????????????????????????# #?????????? | | ??????????????????????????????# #?????????? | | ?????????????????????????????? ! ?????????? | | ??????????????????????????????? ?????????? | | ??????????????????????????????? [ ????????? | | ??????????????????????????????? ????????? | | ???????????????????????????????? ?????????? | | ????????????????????????????????????????????? | | ????????????????????????????????????????????? | | ????????????????????????????????????????????? | | ????????????????????????????????????????????? | | ????????????????????????????????????????????? | | ????????????????????????????????????????????? | | ????????????????????????????????????????????? | | ????????????????????????????????????????????? | | ????????????????????????????????????????????? | | ????????????????????????????????????????????? | +----------------------------------------------------+ Best States ------------- Heat Dissipation 31 Energy Generation 23 Energy Capacity 460 Matter Stores 300 Matter Capacity 300 Sight Range 16 Robot Scan Range 15 Terrain Scan Range 16 Terrain Scan Density 10 Evasion (%) 50 Recoil Reduction 2 Defensive Hacking 10 Item Schematics ----------------- Rocket Launcher | -8/Materials | Scanalyzed Hvy. Ion Engine | -8/Materials | Scanalyzed System Shield | -8/Materials | Scanalyzed Robot Schematics ------------------ None Fabricated ------------ Nothing Alien Tech Used ----------------- None Achievements -------------- Hey, That's Mine! Challenges ------------ None Game ------ Seed ScrapCargoSystem Manual? 0 Play Time 00:34:25 Cumulative 17.7 hours Start 2024.11.08 @ 06:20:35 End 2024.11.08 @ 06:55:37 Sessions 1 Manual Loads 0 Difficulty Rogue Special Mode None Game No. 42 Rogue 42 Adventurer 0 Explorer 0 Win Type - Total 0 Types 0/0/0/0/0/0/0/0/0 Lore% 9 Gallery% 16 Achievement% 17 Wizard Run 0 Options --------- Layout 1 ASCII 0 Keyboard 0 Movement Arrows Keybinds 0 Fullscreen 1 Font 24/Smallcaps Map View 50x40 Zoom Use 9% Tactical HUD 1 Map Filters NONE Filters NONE Steam 1 RUN: 526005e3-81c4-4023-a7fb-8a7cb22c4893